Cogmind - Beta 16.1 @@@ ROGUE MODE // 2026.02.12 @ 01:24:40 Player: deepledi Result: Destroyed by as-10459 with Assembled Blade Performance ------------- Evolutions (1) 500 Regions Visited (3) 600 Robots Destroyed (45) 225 Value Destroyed (1039) 1039 Prototype IDs (3) 60 Alien Tech Used (0) 0 Bonus (0) 0 TOTAL SCORE: 2424 Bonus ------- None Cogmind --------- Core Integrity 0/400 Matter 251/300 Energy 66/280 System Corruption 8% Temperature Cool (38) Movement Treading (200) Ox1 Location -9/Mines Parts ------- > --- POWER (1) -------- Heavy Ion Engine > --- PROPULSION (3) --- Light Treads > --- UTILITY (3) ------ Large Storage Unit > --- WEAPON (2) ------- Heavy Flail > --- INVENTORY (15) --- Aerolev Unit Aerolev Unit Aerolev Unit Large Storage Unit Large Matter Pod (150) Sensor Array Rocket Launcher Datajack Plasma Cutter Peak State ------------ > --- POWER ------------ Light Nuclear Core > --- PROPULSION ------- Light Treads Light Treads Aerolev Unit > --- UTILITY ---------- Large Storage Unit Improved Targeting Computer Hardened Light Armor Plating > --- WEAPON ----------- Autogun Light Cannon > --- INVENTORY -------- Light Ion Engine Improved Ion Engine Light Treads Wheel Improved Hover Unit Improved Hover Unit Improved Hover Unit Improved Hover Unit Heat Sink Large Storage Unit Large Matter Pod Weight Redist. System Autogun Datajack Heavy Flail [Rating: 19] Favorites ----------- Power Heavy Ion Engine Engine Heavy Ion Engine Power Core Light Nuclear Core Propulsion Light Treads Treads Light Treads Leg Aluminum Leg Wheel Wheel Hover Unit Improved Hover Unit Utility Large Storage Unit Device Heat Sink Storage Large Storage Unit Processor Improved Targeting Computer Protection Hardened Light Armor Plating Weapon Light Cannon Energy Gun EM Pulse Gun Ballistic Gun Autogun Ballistic Cannon Light Cannon Build | -11 -10 -9 -9 ------- Run | Yrd Mat Mat Min Slots Evolved 2 | . . 2 . Power . | . . . . Propulsion 1 | . . 1 . Utility 1 | . . 1 . Weapon . | . . . . Parts Attached 36 | 6 12 13 5 Power 5 | 1 1 2 1 Engine 4 | 1 1 1 1 Core 1 | . . 1 . Reactor . | . . . . Propulsion 13 | 2 4 6 1 Treads 7 | . 1 5 1 Leg 2 | 2 . . . Wheel 1 | . 1 . . Hover 3 | . 2 1 . Flight . | . . . . Utility 10 | 1 4 4 1 Device 3 | . 2 1 . Storage 3 | 1 2 . . Processor 2 | . . 2 . Hackware . | . . . . Protection 2 | . . 1 1 Artifact . | . . . . Weapon 8 | 2 3 1 2 Energy Gun 3 | 1 . 1 1 Energy Cannon . | . . . . Ballistic Gun 3 | 1 2 . . Ballistic Cannon 1 | . 1 . . Launcher . | . . . . Special Weapon . | . . . . Impact Weapon 1 | . . . 1 Slashing Weapon . | . . . . Piercing Weapon . | . . . . Special Melee Weapon . | . . . . Unidentified Prototypes 3 | . . 3 . Parts Lost 13 | . 1 1 11 Power 1 | . . . 1 Propulsion 3 | . . . 3 Utility 4 | . . 1 3 Weapon 5 | . 1 . 4 Highest Loss Streak 11 | . 1 1 11 To Critical Strikes . | . . . . Average Backups 12 | 3 9 14 14 Power 1 | . 1 1 . Propulsion 4 | 1 4 4 3 Utility 2 | . . 4 3 Weapon 2 | 1 1 2 3 Tool/Special . | . . . . Unused Backups 16 | . 3 5 8 Power 2 | . . 2 . Propulsion 5 | . 1 2 2 Utility 4 | . 1 . 3 Weapon 3 | . 1 1 1 Tool/Special 2 | . . . 2 Average Slot Usage (%) 97 | . 99 97 92 Engine 8 | . 14 6 9 Core 3 | . . 4 . Treads 23 | . 4 31 29 Wheel 2 | . 4 1 . Hover 4 | . 15 . . Device 4 | . 13 1 . Storage 11 | . 14 11 11 Processor 7 | . . 10 10 Protection 6 | . . 9 11 Energy Gun 3 | . 10 . 2 Ballistic Gun 9 | . 5 10 8 Ballistic Cannon 10 | . 11 10 9 Peak Build Rating 19 | 6 11 19 17 Average Rating 13 | 3 9 16 15 On Entrance 8 | . 6 10 17 Avg Prop Armor Cover (%) 12 | . 11 18 . Naked Turns . | . . . . Heaviest Build 39 | 12 30 39 39 Greatest Support 60 | 20 20 60 60 Greatest Overweight (x) 3 | . 2 3 1 Average Overweight (x) . | . . . . Largest Inventory Capacity 15 | 8 15 15 15 Average Capacity 13 | 7 10 15 15 Most Carried 15 | 8 11 15 15 Average Carried 12 | 4 9 14 14 Final Capacity 15 | 8 15 15 15 Final Carried 15 | 6 11 15 9 Class Distribution -------------------- 100% | Mutant Dominant Class ---------------- Mutant | -10/Materials Mutant | -9/Materials Mutant | -9/Mines Resources | -11 -10 -9 -9 ----------- Run | Yrd Mat Mat Min Matter Collected 1468 | 214 343 804 107 Remotely . | . . . . Salvage Created 1441 | . 319 887 235 Parts 78 | . 22 46 10 Haulers Intercepted 4 | . 1 3 . Recyclers Shooed 2 | . . 2 . Parts Field Recycled . | . . . . Retrieved Matter . | . . . . Parts Self-Destructed . | . . . . Prevented . | . . . . Parts Restored . | . . . . Kills | -11 -10 -9 -9 ------- Run | Yrd Mat Mat Min Combat Hostiles Destroyed 28 | . 8 15 5 Guns 9 | . 1 6 2 Cannons 14 | . 3 9 2 AOE 5 | . 4 . 1 Classes Destroyed 10 | . 6 3 1 Worker 3 | . 2 . 1 Builder 2 | . 2 . . Hauler 4 | . 1 3 . Recycler 4 | . . 2 2 Watcher 4 | . 3 1 . Swarmer 6 | . 3 . 3 Grunt 14 | . 5 9 . Brawler 2 | . . 2 . Sentry 4 | . . 4 . Demolisher 2 | . . . 2 Best Kill Streak 8 | . 8 6 4 Combat Bots Only 6 | . 3 6 3 Max Kills in Single Turn 3 | . 3 1 3 Gunslinging . | . . . . Exploded 3 | . 3 . 1 Melee . | . . . . Uniques/NPCs Destroyed . | . . . . Combat | -11 -10 -9 -9 -------- Run | Yrd Mat Mat Min Hostile Shots Fired 187 | . 31 44 112 Missed 49 | . 8 15 26 Hits 138 | . 23 29 86 Melee 8 | . . 1 7 Projectile 130 | . 23 28 79 AOE 24 | . . . 24 Part Disruptions 1 | . . . 1 Damage Taken 2412 | . 250 382 1780 Core 488 | . 71 63 354 Absorbed by Shields . | . . . . Regen/Repaired (Parts) 138 | . . 138 . Core Remaining (%) 85 | 100 71 . . Volleys Fired 113 | . 25 68 20 Largest 2 | . 2 2 2 Hottest 90 | . 70 53 90 Shots Fired 222 | . 51 136 35 Gun 114 | . 26 68 20 Cannon 108 | . 25 68 15 Launcher . | . . . . Special . | . . . . Kinetic 198 | . 33 136 29 Thermal . | . . . . Explosive . | . . . . Electromagnetic 24 | . 18 . 6 Robot Hit Streak 9 | . 8 9 8 Robot Miss Streak 7 | . 7 4 3 Penetration Max . | . . . . Secondary Targets . | . . . . Shots Hit Robots 127 | . 27 80 20 Core Hits 61 | . 17 30 14 Critical Kills . | . . . . Critical Parts Destroyed . | . . . . Critical Strikes 4 | . 1 3 . Destroy 1 | . . 1 . Blast 3 | . 1 2 . Melee Attacks . | . . . . Impact . | . . . . Slashing . | . . . . Piercing . | . . . . Sneak Attacks . | . . . . Combat Hostiles . | . . . . Follow-up Attacks . | . . . . Damage Inflicted 2691 | . 857 1324 510 Guns 1084 | . 193 671 220 Cannons 1103 | . 309 653 141 Explosions 504 | . 355 . 149 Melee . | . . . . Ramming . | . . . . Kinetic 1954 | . 368 1324 262 Thermal 288 | . 139 . 149 Explosive 216 | . 216 . . Electromagnetic 233 | . 134 . 99 Impact . | . . . . Slashing . | . . . . Piercing . | . . . . Highest Corruption 5 | . 1 . 5 Average Corruption 1 | . 1 . 3 Corruption Purged . | . . . . Corruption Blocked . | . . . . Effects 2 | . 2 . . Message Errors 1 | . 1 . . Misfires 1 | . 1 . . Overload Shots . | . . . . Overflow Damage 47 | . 42 5 . Projectiles 5 | . . 5 . Explosions 42 | . 42 . . Melee . | . . . . Knockbacks 3 | . . 2 1 Impact . | . . . . Kinetic 3 | . . 2 1 Secondary . | . . . . Self-Inflicted Damage . | . . . . Shots . | . . . . Rammed . | . . . . Targets Rammed . | . . . . Kicked . | . . . . Crushed . | . . . . Highest Temperature 55 | . 4 55 42 Average Temperature 16 | . 2 16 17 Received Heat Transfer 332 | . 96 156 80 Siege Activations . | . . . . Martial Activations . | . . . . Shielding Activations . | . . . . Robots Disrupted . | . . . . Combat Hostiles . | . . . . Robots Corrupted . | . . . . Combat Hostiles . | . . . . Parts Fried . | . . . . Impact Corruptions . | . . . . Robots Melted . | . . . . Combat Hostiles . | . . . . Parts Melted 1 | . 1 . . Heat Transferred 200 | . 150 . 50 Parts Sabotaged . | . . . . Parts Stolen . | . . . . Parts Stripped . | . . . . Power Chain Reactions 3 | . 2 . 1 Alert | -11 -10 -9 -9 ------- Run | Yrd Mat Mat Min Maximum Alert Level 1 | . . 1 . Low Security (%) 99 | 100 100 99 100 Level 1 . | . . . . Level 2 . | . . . . Level 3 . | . . . . Level 4 . | . . . . Level 5 . | . . . . High Security . | . . . . Max Security . | . . . . Peak Influence 200 | . 133 200 66 Initial 34 | . . 34 6 Average 82 | . 72 98 41 Influence Increases 859 | . 280 440 139 Destroy 0b10 Robot/C 560 | . 160 300 100 Destroy 0b10 Robot/NC 85 | . 40 30 15 Destroy Leader 156 | . 48 88 20 Successful Hack 18 | . . 18 . Disable Machine 15 | . 15 . . Destroy Structure 25 | . 17 4 4 Influence Decreases 855 | . 198 504 153 Entered New Map 60 | . . 48 12 Time Decay 704 | . 188 446 70 Lost Part 91 | . 10 10 71 Squads Dispatched 4 | . 2 2 . Investigation 2 | . 1 1 . Extermination . | . . . . Reinforcement 2 | . 1 1 . Assault . | . . . . Garrison . | . . . . Intercept . | . . . . Searches Triggered . | . . . . Construction Impeded . | . . . . Haulers Reinforced . | . . . . Active Scanning Responses . | . . . . Cargo Convoy Interrupts . | . . . . Stealth | -11 -10 -9 -9 --------- Run | Yrd Mat Mat Min Distress Signals 3 | . . 3 . Communications Jammed . | . . . . Distress Signals . | . . . . Times Spotted 55 | . 13 18 24 Peak Tracking Total 23 | . 4 6 23 Tactical Retreats 1 | . . . 1 Traps | -11 -10 -9 -9 ------- Run | Yrd Mat Mat Min Traps Triggered 2 | . 2 . . Indirectly . | . . . . Trap Hack Attempts . | . . . . Triggered . | . . . . Disarmed . | . . . . Reprogrammed . | . . . . Reused . | . . . . Traps Extracted . | . . . . Installed . | . . . . Triggered . | . . . . Machines | -11 -10 -9 -9 ---------- Run | Yrd Mat Mat Min Machines Disabled 1 | . 1 . . Max in Single Turn 1 | . 1 . . Machines Repaired . | . . . . Machines Dismantled . | . . . . Machines Sabotaged . | . . . . Overloaded Fab Kills . | . . . . Hacking | -11 -10 -9 -9 --------- Run | Yrd Mat Mat Min Machines Accessed 11 | . 2 9 . Terminals 8 | . 2 6 . Fabricators . | . . . . Repair Stations 1 | . . 1 . Recycling Units 1 | . . 1 . Scanalyzers 1 | . . 1 . Garrison Access . | . . . . Total Hacks 21 | . 4 17 . Successful 17 | . 3 14 . Failed 3 | . 1 2 . Catastrophic 1 | . 1 . . Database Lockouts 1 | . . 1 . Manual 10 | . 3 7 . Terminals 13 | . 4 9 . Fabricators . | . . . . Repair Stations 4 | . . 4 . Recycling Units 1 | . . 1 . Scanalyzers 3 | . . 3 . Garrison Access . | . . . . Terminal Hacks 3 | . 1 2 . Alert Level 2 | . 1 1 . Maintenance Status 1 | . . 1 . Fabricator Hacks . | . . . . Repair Station Hacks 4 | . . 4 . Scan Component 2 | . . 2 . Repair 2 | . . 2 . Recycling Unit Hacks 1 | . . 1 . Report Inventory 1 | . . 1 . Scanalyzer 2 | . . 2 . Retrieve Study 2 | . . 2 . Garrison Access Hacks . | . . . . Unauthorized Hacks 7 | . 2 5 . Terminals 7 | . 2 5 . Track 1 | . . 1 . Botnet 6 | . 2 4 . Fabricators . | . . . . Repair Stations . | . . . . Recycling Units . | . . . . Scanalyzers . | . . . . Garrison Access . | . . . . Data Cores Recovered . | . . . . Used . | . . . . Hacking Detections 3 | . 1 2 . Full Trace Events 1 | . . 1 . Feedback Events . | . . . . Feedback Blocked . | . . . . Robot Schematics Acquired . | . . . . Robots Built . | . . . . Authchips . | . . . . Time . | . . . . Total Robot Build Rating . | . . . . Part Schematics Acquired . | . . . . Parts Built . | . . . . Authchips . | . . . . Time . | . . . . Total Part Build Rating . | . . . . Part Studies Acquired 2 | . . 2 . Parts Repaired 2 | . . 2 . Time 52 | . . 52 . Parts Recycled . | . . . . Recycled Matter . | . . . . Retrieved Matter . | . . . . Retrieved Components . | . . . . Parts Scanalyzed . | . . . . Part Schematics Acquired . | . . . . Parts Damaged . | . . . . Bothacking | -11 -10 -9 -9 ------------ Run | Yrd Mat Mat Min Used RIF Installer . | . . . . Robots Hacked . | . . . . Non-combat . | . . . . Combat . | . . . . Robot Hacks Applied . | . . . . Relay Couplers Released . | . . . . Fabnet Peak Effective % . | . . . . Robots Rewired . | . . . . Allies Hacked . | . . . . Hacks Repelled . | . . . . Allies | -11 -10 -9 -9 -------- Run | Yrd Mat Mat Min Total Allies . | . . . . Largest Group . | . . . . Highest-Rated Group . | . . . . Highest-Rated Ally . | . . . . Total Orders . | . . . . Ally Attacks . | . . . . Total Damage . | . . . . Kills . | . . . . Allies Corrupted . | . . . . Allies Melted . | . . . . Intel | -11 -10 -9 -9 ------- Run | Yrd Mat Mat Min Active Infowar (turns) . | . . . . Robot Analysis Total . | . . . . Derelict Logs Recovered . | . . . . Drone Launches . | . . . . Drone Recoveries . | . . . . Exploration | -11 -10 -9 -9 ------------- Run | Yrd Mat Mat Min Turns Passed 1845 | 80 509 1106 150 Spaces Moved 1025 | 56 416 497 56 Core 8 | 8 . . . Treads 507 | . . 451 56 Legs 87 | 48 39 . . Wheels 173 | . 127 46 . Hover 250 | . 250 . . Flight . | . . . . Fastest Speed 50 | 50 56 95 160 Average Speed 127 | 110 93 154 161 Slowest Speed 200 | 120 120 160 200 Overloaded Moves . | . . . . Propulsion Burnouts . | . . . . Robots Hopped . | . . . . Potential Cave-ins . | . . . . Cave-ins Triggered . | . . . . Exploration Rate (%) 33 | 3 61 52 19 Regions Visited 3 Branch Regions 1 Pre-discovered Areas . | . . . . Known Exits Taken . | . . . . Unknown Exits Taken 3 | 1 1 1 . Scrap Searched . | . . . . Spaces Dug . | . . . . Terrain Destroyed 22 | . 15 . 7 Melee . | . . . . Projectile 1 | . . . 1 AOE 21 | . 15 . 6 Terrain Rammed . | . . . . Walls Destroyed . | . . . . Machines Disabled . | . . . . Actions | -11 -10 -9 -9 --------- Run | Yrd Mat Mat Min Total 1365 | 73 489 719 84 Wait 119 | . 16 101 2 Move 1022 | 55 415 496 56 Hop . | . . . . Pick Up 31 | 8 10 13 . Fast Attach 19 | 4 3 12 . Attach 14 | 4 3 1 6 Detach 8 | 2 2 4 . Swap 11 | . 6 5 . Drop 28 | . 9 19 . Fire 113 | . 25 68 20 Melee . | . . . . Ram . | . . . . Kick . | . . . . Crush . | . . . . Escape Stasis . | . . . . Rewire . | . . . . Trap . | . . . . Miscellaneous . | . . . . Route ------- -11/Scrapyard -10/Materials (discovered 3 exits: *Mat x2 / [*Min]) -9/Materials (discovered 2 exits: [*Mat] / [*Min]) -9/Mines History --------- Turn | Location | Event 25 | -11/Scrapyard | Discovered new exit (range 16) 81 | -11/Scrapyard | Entered Materials 232 | -10/Materials | Discovered new exit (range 6) 299 | -10/Materials | Discovered new exit (range 5) 300 | -10/Materials | Build established: Mutant 585 | -10/Materials | Discovered new exit (range 5) 590 | -10/Materials | Entered another Materials area 590 | -9/Materials | Evolved 2 slots: Propulsion x1, Utility x1 620 | -9/Materials | Central database locked down 1203 | -9/Materials | Discovered new exit (range 10) 1333 | -9/Materials | Discovered new exit (range 7) 1611 | -9/Materials | Repaired Lgt. Cannon 1639 | -9/Materials | Repaired Lgt. Treads+ 1696 | -9/Materials | Entered Mines 1798 | -9/Mines | Assembled infested the area 1803 | -9/Mines | Assisted by a Guerilla fighting off Assembled 1822 | -9/Mines | Core integrity fell below 50% 1837 | -9/Mines | Core integrity fell below 20% 1846 | -9/Mines | Destroyed by as-10459 with Assembled Blade Last Messages --------------- 01828_ Lgt. Cannon destroyed. 01828_ S-10 Pest destroyed. 01828_ R-06 Scavenger collects Flexi-carbon Leg. 01829_ The unstable cave ceiling collapses. 01830_ Chain reaction triggered in Lgt. Deuterium Engine. 01830_ D-53 Grenadier destroyed. 01830_ R-06 Scavenger destroyed. 01830_ K-01 Serf destroyed. 01832_ The unstable cave ceiling collapses. 01832_ Imp. Targeting Computer destroyed. 01832_ System corrupted by crushing effect (+2). 01835_ The unstable cave ceiling collapses. 01838_ Imp. EM Shotgun destroyed. 01838_ System corrupted by crushing effect (+3). 01839_ The unstable cave ceiling collapses. 01843_ Lgt. Armor Plating destroyed. 01844_ The unstable cave ceiling collapses. 01846_ Imp. EM Shotgun destroyed. 01846_ System corrupted by crushing effect (+3). Map ----- +----------------------------------------------------+ | ????????????????????????????????????????????????? | | ????????????????????????????????????????????????? | | ????????????????????????????????????????????????? | | ????????????????????????????????????????????????? | | ????????????????????????????????????????????????? | | ????????????????????????????????????????????????? | | ????????????????????????????????????????????????? | | ??????#?????????????????????????????????????????? | | ??????# ????????????????????????????????????????? | | ??????# ??????####?????????????????????????????? | | ??????# ?????## ##????????????????????????????? | | ?????## ?????# #????????????????????????????? | | ????## ##???# ##???????????????????????????? | | ???## ##??# ##??????????????????????????? | | ???# #??# ##?????????????????????????? | | ???# """ ##??# ##???#???????#??#?????????? | | ????# """ #### #??? ?????? ## ??????????? | | ????# """ #??? ????? ???????????? | | ???## ##### ???? ????????????? | | ??## ##### ### ###? ?#????????????? | | ??# ##???# ## # ## #????????????? | | ??# #????# # # # #?????????????? | | ??## ##????## # ### ##?????????????? | | ???### ##??????# # # # # #?????????????? | | ?????# #??????## a# a ######????????? | | ?????# #?????## @a a = ! %! ????? | | ?????# #?????# aaa s%*= = ua ????? | | ?????# #?????# #== ####### #??????? | | ?????# %#?????# ## # %! #??????????????? | | ?????#!%#?????### ## # ##%!%! #??????????????? | | ??#### *##??????## #########!%"##??????????????? | | ??# #??????? ????????; ##???????????????? | | ??# #??????# ###????????? ???????????????? | | ??# #??????##???????????? ""??????????????? | | ??# = #????????????????????? """?????????????? | | ??# = #????????????????????? ""??????????????? | | ??# * #????????????????????? ??????????????? | | ??########?????????????????????? ???????????????? | | ????????????????????????????????#???????????????? | | ????????????????????????????????????????????????? | | ????????????????????????????????????????????????? | | ????????????????????????????????????????????????? | | | | | | | | | | | | | | | | | +----------------------------------------------------+ Best States ------------- Heat Dissipation 35 Energy Generation 14 Energy Capacity 280 Matter Stores 300 Matter Capacity 300 Sight Range 16 Terrain Scan Density 10 Additional Mass Support 6 Armor Coverage 150 Evasion (%) 55 Targeting Accuracy 12 Recoil Reduction 3 Item Schematics ----------------- None Robot Schematics ------------------ None Fabricated ------------ Nothing Repaired ---------- Lgt. Cannon | 16% | -9/Materials Lgt. Treads | 72% | -9/Materials Studied --------- Imp. Hover Unit | -9/Materials | Hacked Lgt. Treads | -9/Materials | Hacked Alien Tech Used ----------------- None Achievements -------------- Item+ There's More Where That Came From Challenges ------------ None Game ------ Seed AlloyWarpBrace Manual? 0 Play Time 00:30:02 Cumulative 76.0 hours Start 2026.02.12 @ 00:57:05 End 2026.02.12 @ 01:24:40 Sessions 1 Manual Loads 0 Difficulty Rogue Special Mode None Game No. 92 Rogue 91 Adventurer 1 Explorer 0 Win Type - Total 0 Types 0/0/0/0/0/0/0/0/0/0 Lore% 22 Gallery% 40 Achievement% 25 Wizard Run 0 Options --------- Layout 1 ASCII 0 Keyboard 0 Movement Mouse Keybinds 0 Fullscreen 2 Font 24/Smallcaps Map View 50x35 Zoom Use 0% Tactical HUD 1 Map Filters NONE Filters NONE Steam 1 RUN: 4a17a4d1-df8b-4535-90fa-3fe55bc56624